bitfinex/quotes_SOLUSD_20251106
["timestamp","ask_amount","ask_price","bid_price","bid_amount"]
[1762466501100,24.6714404,156.55,156.54,7.44]
[1762466501504,4.0794404,156.55,156.54,7.44]
[1762466501689,10.46717594,156.55,156.54,7.44]
[1762466502410,20.592,156.56,156.54,7.44]
[1762466502603,23.9914404,156.55,156.54,7.44]
[1762466503795,30.37918199,156.55,156.52,0.66]
[1762466503990,30.37918199,156.55,156.53,7.44]
[1762466504833,3.3994404,156.55,156.53,8.1]
[1762466505506,31.05918041,156.55,156.53,7.44]
[1762466505705,24.6714404,156.55,156.53,7.44]
[1762466505910,23.9914404,156.55,156.53,7.44]
[1762466506124,24.6714404,156.55,156.53,7.44]
[1762466506311,31.05921002,156.55,156.53,7.44]
[1762466508707,30.37921002,156.55,156.53,7.44]
[1762466508902,31.05921002,156.55,156.53,7.44]
[1762466509102,0.68,156.6,156.55,50.0]
[1762466509308,3.3994404,156.59,156.56,7.44]
[1762466509525,10.46581659,156.59,156.56,7.44]
[1762466510028,3.3994404,156.58,156.56,7.44]
[1762466510918,3.3994404,156.58,156.56,8.1]
[1762466511329,3.3994404,156.58,156.56,14.48719378]
[1762466512131,3.3994404,156.58,156.56,8.1]
[1762466512432,3.3994404,156.58,156.56,7.44]
[1762466513724,21.272,156.59,156.56,14.5271426]
[1762466513904,24.6714404,156.59,156.56,14.5271426]
[1762466514631,23.9914404,156.59,156.56,13.8271426]
[1762466514816,3.3994404,156.59,156.57,0.7]
[1762466515320,23.9914404,156.6,156.57,0.7]
[1762466516028,23.9914404,156.6,156.58,7.44]
[1762466516229,24.7114404,156.6,156.58,7.44]
[1762466516832,31.09713707,156.6,156.58,7.44]
[1762466517740,24.7114404,156.6,156.58,7.44]
[1762466518615,24.7114404,156.6,156.58,8.14]
[1762466518616,3.3994404,156.6,156.58,8.14]
[1762466518816,3.3994404,156.6,156.58,7.44]
[1762466519036,0.72,156.61,156.58,8.14]
[1762466519240,3.3994404,156.63,156.59,0.7]
[1762466519444,9.78376158,156.64,156.59,4.0994404]
[1762466519653,17.22882769,156.67,156.59,4.0994404]
[1762466519654,4.1194404,156.66,156.62,50.0]
[1762466519853,3.3994404,156.67,156.63,7.44]
[1762466520055,4.1194404,156.67,156.64,0.7]
[1762466520233,6.38281759,156.68,156.64,0.7]
[1762466520234,3.3994404,156.68,156.64,0.7]
[1762466520750,3.3994404,156.68,156.65,6.38365783]
[1762466520935,20.592,156.67,156.66,7.44]
[1762466521131,0.1,156.7,156.66,8.14]
[1762466521444,0.1,156.7,156.67,0.7]
[1762466521620,21.412,156.7,156.67,0.7]
[1762466521824,24.8114404,156.7,156.67,0.7]
[1762466522119,0.82,156.7,156.67,0.7]
[1762466522544,0.1,156.7,156.67,0.7]
[1762466522750,0.1,156.7,156.67,7.08256993]
[1762466522924,20.692,156.7,156.67,0.7]
[1762466523131,3.4994404,156.7,156.67,0.7]
[1762466523649,4.2194404,156.7,156.67,0.7]
[1762466524555,3.3994404,156.68,156.66,7.44]
[1762466524857,3.3994404,156.67,156.64,7.08397356]
[1762466525150,3.3994404,156.65,156.64,7.44]
[1762466525345,3.3994404,156.66,156.64,7.44]
[1762466525525,3.3994404,156.66,156.62,57.08484169]
[1762466525526,3.3994404,156.66,156.62,7.08484169]
[1762466525725,3.3994404,156.65,156.63,8.14]
[1762466527342,3.3994404,156.65,156.63,14.52418472]
[1762466527545,3.3994404,156.68,156.64,0.7]
[1762466527766,3.3994404,156.67,156.65,7.44]
[1762466528152,3.3994404,156.67,156.65,8.14]
[1762466528674,3.3994404,156.68,156.65,8.14]
[1762466528844,3.3994404,156.67,156.65,7.44]
[1762466529040,3.3994404,156.66,156.65,7.44]
[1762466529763,3.3994404,156.67,156.65,8.14]
[1762466529964,0.1,156.7,156.66,50.7]
[1762466530140,3.4994404,156.7,156.67,7.44]
[1762466530437,0.1,156.7,156.68,53.3994404]
[1762466530638,0.1,156.7,156.69,17.2214686]
[1762466530840,0.1,156.7,156.69,17.9214686]
[1762466531850,0.1,156.7,156.69,27.71029629]
[1762466536770,0.1,156.7,156.69,20.27029629]
[1762466536964,0.1,156.7,156.66,7.59562]
[1762466536965,0.82,156.7,156.66,100.0]
[1762466537158,3.3994404,156.67,156.66,7.44]
[1762466537361,9.78228331,156.67,156.66,7.44]
[1762466537560,10.50228331,156.67,156.66,7.44]
[1762466539274,4.1194404,156.67,156.66,7.44]
[1762466539890,3.3994404,156.69,156.66,8.14]
[1762466540057,4.1194404,156.69,156.66,7.44]
[1762466540258,3.3994404,156.69,156.66,8.14]
[1762466540463,4.1194404,156.69,156.66,7.44]
[1762466541170,3.3994404,156.67,156.66,7.44]
[1762466541770,9.78228331,156.67,156.66,7.44]
[1762466542374,3.3994404,156.67,156.66,7.44]
[1762466542866,10.50228331,156.67,156.66,7.44]
[1762466547085,7.20202295,156.7,156.66,8.15]
[1762466547273,3.3994404,156.68,156.66,7.44]
[1762466547457,3.4994404,156.7,156.67,0.71]
[1762466547656,0.1,156.7,156.67,0.71]
[1762466548469,9.8811437,156.7,156.67,0.71]
[1762466548658,3.3994404,156.69,156.66,7.44]
[1762466548866,3.3994404,156.68,156.66,7.44]
[1762466549384,3.3994404,156.68,156.66,8.15]
[1762466549557,3.3994404,156.67,156.66,7.44]
[1762466552269,3.3994404,156.67,156.6,27.68766779]
[1762466552270,10.50228331,156.67,156.6,27.68766779]
[1762466552469,2.17219545,156.63,156.59,0.71]
[1762466552666,2.17219545,156.63,156.6,7.44]
[1762466552667,8.55671719,156.63,156.6,7.44]
[1762466552871,2.17219545,156.63,156.6,7.44]
[1762466553070,8.55634076,156.64,156.61,8.15]
[1762466553395,2.17219545,156.63,156.61,8.15]
[1762466553594,9.27634076,156.64,156.61,8.15]
[1762466554886,2.89219545,156.64,156.61,8.15]
[1762466555086,2.17219545,156.64,156.61,14.53518669]
[1762466556291,8.55630911,156.64,156.61,8.15]
[1762466557512,9.25630911,156.64,156.61,8.15]
[1762466557926,2.17219545,156.63,156.61,8.15]
[1762466558300,2.87219545,156.64,156.61,8.15]
[1762466558795,9.2563488,156.64,156.61,8.15]
[1762466559605,2.87219545,156.63,156.62,7.44]
[1762466559985,2.17219545,156.63,156.62,7.44]
[1762466560193,2.17219545,156.64,156.62,7.44]
[1762466561693,2.17219545,156.65,156.63,0.69]
[1762466561899,2.17219545,156.65,156.62,7.44]
[1762466562105,2.17219545,156.64,156.62,8.13]
[1762466562306,2.87219545,156.65,156.62,8.13]
[1762466563112,9.25597773,156.65,156.62,8.13]
[1762466565713,2.17219545,156.64,156.62,8.13]
[1762466565912,2.87219545,156.65,156.62,14.51477169]
[1762466569116,2.87219545,156.65,156.62,64.51477169]
[1762466569615,2.17219545,156.68,156.64,50.0]
[1762466569815,2.17219545,156.68,156.65,7.44]
[1762466570113,0.1,156.7,156.67,50.0]
[1762466570315,0.1,156.7,156.68,7.44]
[1762466570519,0.1,156.7,156.68,8.13]
[1762466570906,0.1,156.7,156.69,0.69]
[1762466571426,0.1,156.72,156.69,27.6640282]
[1762466571723,0.1,156.74,156.73,50.0]
[1762466571901,0.1,156.74,156.73,60.28219545]
[1762466573710,0.1,156.74,156.73,76.45142255]
[1762466573913,0.1,156.75,156.74,59.78882769]
[1762466574125,0.1,156.75,156.74,62.64102314]
[1762466574416,0.1,156.78,156.75,59.78882769]
[1762466574618,0.1,156.78,156.75,70.06102314]
[1762466574797,1e-08,156.76,156.75,70.06102314]
[1762466575898,1e-08,156.76,156.75,76.44060846]
[1762466578621,1e-08,156.76,156.75,97.03260846]
[1762466579120,1e-08,156.76,156.75,89.61260846]
[1762466579319,1e-08,156.76,156.75,97.03260846]
[1762466581003,1e-08,156.76,156.75,87.24378077]
[1762466581707,1e-08,156.76,156.75,84.39158532]
[1762466581929,0.70000001,156.76,156.75,7.42]
[1762466582103,1e-08,156.76,156.75,7.42]
[1762466583026,1e-08,156.76,156.75,13.79958532]
[1762466584629,1e-08,156.76,156.75,6.37958532]
[1762466584831,1e-08,156.76,156.75,7.42]
[1762466585528,0.70000001,156.76,156.73,61.9]
[1762466585730,0.70000001,156.76,156.75,7.42]
[1762466585731,2.87219546,156.76,156.75,7.42]
[1762466585936,0.70000001,156.76,156.75,7.42]
[1762466586227,1e-08,156.76,156.75,7.42]
[1762466586608,1e-08,156.76,156.75,16.65178077]
[1762466589331,0.70000001,156.76,156.75,7.42]
[1762466589539,1e-08,156.76,156.75,13.79958532]
[1762466589836,1e-08,156.76,156.75,16.65178077]
[1762466590221,1e-08,156.76,156.75,13.79958532]
[1762466591910,1e-08,156.76,156.75,15.97178077]
[1762466592649,1e-08,156.76,156.75,13.79958532]
[1762466592847,1e-08,156.76,156.75,15.97178077]
[1762466594228,1e-08,156.76,156.75,13.79958532]
[1762466594606,1e-08,156.76,156.75,7.42]
[1762466594810,2.87219546,156.76,156.75,7.42]
[1762466595225,1e-08,156.76,156.75,7.42]
[1762466595540,1e-08,156.76,156.75,8.1]
[1762466595836,1e-08,156.76,156.75,7.42]
[1762466596038,1e-08,156.76,156.75,10.27219545]
[1762466596524,1e-08,156.76,156.75,16.65178077]
[1762466596923,1e-08,156.76,156.75,7.42]
[1762466597118,1e-08,156.76,156.75,15.97178077]
[1762466597325,1e-08,156.76,156.75,16.65178077]
[1762466598135,1e-08,156.76,156.75,13.79958532]
[1762466598647,1e-08,156.76,156.75,16.65178077]
[1762466601248,1e-08,156.76,156.75,15.97178077]
[1762466602442,1e-08,156.76,156.75,7.42]
[1762466602942,1e-08,156.76,156.74,76.97185692]
[1762466603239,1e-08,156.76,156.75,7.42]
[1762466604025,1e-08,156.76,156.75,13.79958532]
[1762466605925,0.71000001,156.76,156.75,7.42]
[1762466606120,1e-08,156.76,156.75,13.79958532]
[1762466608448,1e-08,156.76,156.75,16.67178077]
[1762466613947,1e-08,156.76,156.75,15.97178077]
[1762466614150,1e-08,156.76,156.75,16.67178077]
[1762466614347,1e-08,156.76,156.75,17.88677952]
[1762466614737,1e-08,156.76,156.75,7.42]
[1762466614938,0.71000001,156.76,156.75,7.42]
[1762466615439,4.09719421,156.76,156.75,7.42]
[1762466616046,10.47637257,156.76,156.75,7.42]
[1762466616553,10.47637257,156.76,156.69,6.3820282]
[1762466616756,3.3871942,156.73,156.7,7.42]
[1762466617254,3.3871942,156.75,156.7,61.4671942]
[1762466617436,0.68,156.74,156.7,57.42]
[1762466617932,4.0671942,156.74,156.7,63.80132373]
[1762466618332,0.68,156.73,156.7,63.80132373]
[1762466621756,0.68,156.73,156.7,64.46132373]
[1762466622556,0.68,156.73,156.7,67.84851793]
[1762466624243,0.68,156.75,156.71,4.0471942]
[1762466624444,0.68,156.74,156.72,7.42]
[1762466625337,0.68,156.74,156.73,7.42]
[1762466638264,3.3871942,156.75,156.73,7.42]
[1762466638465,0.71,156.74,156.73,7.42]
[1762466639251,4.0971942,156.74,156.68,151.83475695]
[1762466639447,4.0971942,156.74,156.69,7.42]
[1762466639448,3.3871942,156.72,156.69,7.42]
[1762466639967,0.71,156.71,156.69,7.42]
[1762466640343,4.0971942,156.71,156.69,7.42]
[1762466640950,0.71,156.7,156.69,7.42]
[1762466641550,0.71,156.73,156.7,50.71]
[1762466641756,0.71,156.73,156.71,7.42]
[1762466643869,1e-08,156.76,156.72,4.0971942]
[1762466644165,0.71000001,156.76,156.73,60.8071942]
[1762466644349,1e-08,156.76,156.73,61.5171942]
[1762466644543,1e-08,156.76,156.74,0.71]
[1762466644748,1e-08,156.76,156.75,57.42]
[1762466645054,9.76664047,156.76,156.7,56.38149398]
[1762466645248,3.3871942,156.71,156.66,50.71]
[1762466645461,3.3871942,156.68,156.67,7.42]
[1762466645772,3.3871942,156.69,156.67,7.42]
[1762466646148,4.0971942,156.69,156.67,7.42]
[1762466647664,20.592,156.73,156.67,13.80272167]
[1762466647856,3.3871942,156.7,156.67,14.51272167]
[1762466648265,4.0971942,156.7,156.67,14.51272167]
[1762466649370,0.71,156.7,156.67,64.51272167]
[1762466649765,4.0971942,156.7,156.67,7.42]
[1762466649971,4.0971942,156.7,156.67,8.13]
[1762466650179,4.0971942,156.7,156.67,14.51279677]
[1762466651370,0.71,156.7,156.67,14.51279677]
[1762466654373,0.71,156.7,156.67,64.51279677]
[1762466655368,3.3871942,156.71,156.67,64.51279677]
[1762466655573,4.0971942,156.73,156.69,50.0]
[1762466655876,10.47649351,156.76,156.71,53.3871942]
[1762466656061,10.47649351,156.76,156.72,7.42]
[1762466656377,3.38719421,156.76,156.72,8.13]
[1762466656547,0.71000001,156.76,156.72,11.5171942]
[1762466656751,0.71000001,156.76,156.72,10.8071942]
[1762466656956,0.71000001,156.76,156.73,0.71]
[1762466657203,0.71000001,156.76,156.74,10.8071942]
[1762466657204,1e-08,156.76,156.74,10.8071942]
[1762466657347,1e-08,156.76,156.75,53.3871942]
[1762466657552,1e-08,156.76,156.75,54.0971942]
[1762466658403,1e-08,156.76,156.73,50.71]
[1762466658598,3.3871942,156.74,156.68,57.09243022]
[1762466658760,3.3871942,156.72,156.7,50.0]
[1762466658961,3.3871942,156.74,156.7,50.0]
[1762466659265,3.3871942,156.74,156.71,13.8012137]
[1762466659481,4.0971942,156.74,156.71,13.8012137]
[1762466659764,3.3871942,156.73,156.7,57.09157733]
[1762466660077,3.3871942,156.73,156.71,8.13]
[1762466660573,4.0971942,156.75,156.71,8.13]
[1762466661264,1e-08,156.76,156.73,50.0]
[1762466661460,1e-08,156.76,156.74,7.42]
[1762466661658,1e-08,156.76,156.74,8.13]
[1762466661856,1e-08,156.76,156.74,10.8071942]
[1762466662062,1e-08,156.76,156.75,54.0971942]
[1762466663275,1e-08,156.76,156.75,60.47677952]
[1762466664186,1e-08,156.76,156.75,70.26560721]
[1762466665077,1e-08,156.76,156.75,77.68560721]
[1762466668481,1e-08,156.76,156.75,59.76677952]
[1762466668792,1e-08,156.76,156.75,61.9]
[1762466668970,1e-08,156.76,156.75,75.69958532]
[1762466669174,1e-08,156.76,156.75,79.08677952]
[1762466669375,1e-08,156.76,156.75,129.08677952]
[1762466669601,1e-08,156.76,156.75,129.80677952]
[1762466672383,1e-08,156.76,156.75,69.32]
[1762466672683,0.66000001,156.76,156.75,69.32]
[1762466672883,0.66000001,156.76,156.75,129.08677952]
[1762466672884,1e-08,156.76,156.75,129.08677952]
[1762466673088,1e-08,156.76,156.75,129.80677952]
[1762466674502,1e-08,156.76,156.75,67.90677952]
[1762466674720,0.66000001,156.76,156.73,132.492]
[1762466675014,4.04719421,156.76,156.74,7.42]
[1762466675386,0.66,156.75,156.74,7.42]
[1762466675810,4.0471942,156.75,156.74,7.42]
[1762466676412,9.20892153,156.75,156.74,7.42]
[1762466676614,9.20892153,156.75,156.69,50.0]
[1762466676797,2.16933621,156.73,156.7,7.42]
[1762466677190,0.66,156.72,156.7,7.42]
[1762466678697,0.66,156.72,156.7,13.8015767]
[1762466679096,0.66,156.72,156.7,7.42]
[1762466679513,9.2101681,156.72,156.7,7.42]
[1762466680009,8.5501681,156.72,156.7,7.42]
[1762466680209,0.69,156.71,156.69,6.38188379]
[1762466680407,0.69,156.71,156.7,7.42]
[1762466680807,0.69,156.71,156.68,6.3822806]
[1762466681118,0.69,156.71,156.7,7.42]
[1762466681598,2.85933621,156.71,156.7,7.42]
[1762466682823,9.24054991,156.71,156.7,7.42]
[1762466683120,0.69,156.71,156.69,7.42]
[1762466683703,9.23989477,156.73,156.69,7.42]
[1762466683919,0.69,156.73,156.69,10.24933621]
[1762466684297,0.69,156.73,156.7,50.66]
[1762466684499,0.69,156.73,156.71,7.42]
[1762466684813,20.592,156.75,156.72,8.55014274]
[1762466685016,1e-08,156.76,156.74,2.16933621]
[1762466685207,1e-08,156.76,156.75,7.42]
[1762466685208,0.69000001,156.76,156.75,7.42]
[1762466685520,2.85933622,156.76,156.75,7.42]
[1762466685710,0.69000001,156.76,156.75,7.42]
[1762466688007,9.23851458,156.76,156.75,7.42]
[1762466689022,9.23851458,156.76,156.74,7.42]
[1762466689329,2.85933621,156.75,156.74,7.42]
[1762466691214,9.23892153,156.75,156.74,7.42]
[1762466692225,7.06958532,156.75,156.74,7.42]
[1762466692736,9.23892153,156.75,156.74,7.42]
[1762466699647,20.592,156.72,156.65,0.66]
[1762466699851,2.16933621,156.68,156.67,7.42]
[1762466700348,1e-08,156.76,156.7,50.0]
[1762466700551,1e-08,156.76,156.66,20.592]
[1762466700552,2.16933621,156.73,156.68,52.82933621]
[1762466700726,0.65,156.75,156.69,7.42]
[1762466700923,2.81933621,156.74,156.7,56.38162093]
[1762466701135,2.81933621,156.74,156.7,57.04162093]
[1762466701648,2.81933621,156.74,156.7,7.04162093]
[1762466702428,0.65,156.74,156.7,56.38162093]
[1762466702750,1e-08,156.76,156.72,52.16933621]
[1762466702930,1e-08,156.76,156.73,14.46035646]
[1762466703250,0.65000001,156.76,156.73,14.46035646]
[1762466703468,0.65000001,156.76,156.73,8.08]
[1762466703754,2.81933622,156.76,156.73,7.42]
[1762466705148,9.19856079,156.76,156.73,7.42]
[1762466705353,2.81933622,156.76,156.73,7.42]
[1762466705654,0.65000001,156.76,156.73,14.46036589]
[1762466706444,7.02923657,156.76,156.73,8.08]
[1762466707340,0.65000001,156.76,156.73,8.08]
[1762466708749,0.65000001,156.76,156.73,14.46028772]
[1762466708954,1e-08,156.76,156.73,14.46028772]
[1762466709624,0.65000001,156.76,156.73,14.46028772]
[1762466710530,0.65000001,156.76,156.73,8.08]
[1762466710735,2.16933621,156.74,156.73,7.42]
[1762466711142,2.81933621,156.74,156.73,7.42]
[1762466711477,8.54910731,156.75,156.73,7.42]
[1762466711844,9.19910731,156.75,156.73,7.42]
[1762466712740,0.65,156.75,156.73,7.42]
[1762466712938,29.14103705,156.75,156.73,7.42]
[1762466713138,2.81933621,156.74,156.63,125.73575631]
[1762466713344,2.81933621,156.74,156.64,7.42]
[1762466713345,8.55197434,156.68,156.64,7.42]
[1762466713539,2.16933621,156.67,156.63,0.66]
[1762466713857,2.16933621,156.64,156.6,18.36249255]
[1762466714042,2.16933621,156.64,156.61,7.42]
[1762466714234,2.16933621,156.64,156.61,8.08]
[1762466714435,2.81933621,156.64,156.61,8.08]
[1762466714659,2.16933621,156.63,156.61,8.08]
[1762466716254,2.16933621,156.62,156.61,7.42]
[1762466716571,2.81933621,156.62,156.61,7.42]
[1762466716735,2.81933621,156.63,156.61,7.42]
[1762466716933,2.81933621,156.62,156.61,7.42]
[1762466718359,9.20421681,156.62,156.6,7.42]
[1762466718558,2.81933621,156.61,156.6,7.42]
[1762466720568,9.2046245,156.61,156.6,7.42]
[1762466721278,2.81933621,156.61,156.6,7.42]
[1762466721857,2.16933621,156.61,156.6,7.42]
[1762466722948,2.16933621,156.64,156.6,8.08]
[1762466723151,2.16933621,156.64,156.61,0.66]
[1762466723344,2.16933621,156.64,156.6,13.80563499]
[1762466723549,2.16933621,156.62,156.6,7.42]
[1762466723750,2.16933621,156.61,156.59,0.2]
[1762466723955,2.16933621,156.61,156.6,7.42]
[1762466724544,2.83933621,156.62,156.6,7.42]
[1762466727754,2.16933621,156.63,156.6,8.08]
[1762466727955,21.38985536,156.67,156.6,13.80567562]
[1762466728258,2.16933621,156.64,156.6,14.46567562]
[1762466728660,2.16933621,156.64,156.61,0.66]
[1762466729670,9.22305172,156.65,156.61,7.04523973]
[1762466729865,2.16933621,156.64,156.6,7.42]
[1762466730049,2.16933621,156.62,156.6,7.42]
[1762466730249,2.16933621,156.61,156.6,7.42]
[1762466730971,2.16933621,156.64,156.6,14.4655699]
[1762466731146,2.83933621,156.65,156.61,0.66]
[1762466733273,0.67,156.65,156.62,6.3848806]
[1762466733497,0.67,156.65,156.63,7.42]
[1762466734273,29.81427638,156.67,156.63,7.42]
[1762466734569,2.83933621,156.66,156.63,7.42]
[1762466735276,0.67,156.65,156.63,7.42]
[1762466737072,7.05383333,156.65,156.63,7.42]
[1762466737281,6.38383333,156.65,156.63,7.42]
[1762466737470,4.10361479,156.65,156.63,7.42]
[1762466738159,3.39361479,156.64,156.63,7.42]
[1762466739079,4.10361479,156.65,156.63,7.42]
[1762466739265,0.71,156.65,156.63,7.42]
[1762466739459,7.09374179,156.65,156.63,7.42]
[1762466739666,4.10361479,156.64,156.59,0.2]
[1762466739868,4.10361479,156.64,156.6,7.42]
[1762466739869,0.71,156.64,156.6,7.42]
[1762466740062,4.10361479,156.64,156.6,8.09]
[1762466740264,4.10361479,156.64,156.6,7.42]
[1762466740465,0.71,156.63,156.6,7.42]
[1762466741384,7.09488023,156.63,156.6,7.42]
[1762466741983,10.48849502,156.63,156.6,7.42]
[1762466742181,0.71,156.62,156.6,7.42]
[1762466742982,7.0949961,156.62,156.6,7.42]
[1762466743383,20.592,156.64,156.61,0.67]
[1762466743875,21.302,156.64,156.61,4.06361479]
[1762466744687,15.957455,156.67,156.62,54.06361479]
[1762466744688,4.10361479,156.67,156.62,54.06361479]
[1762466744863,0.71,156.67,156.63,17.19785059]
[1762466745070,0.71,156.67,156.63,17.86785059]
[1762466745369,7.09290404,156.67,156.64,0.67]
[1762466745583,7.09290404,156.67,156.63,17.86785059]
[1762466746092,15.95250638,156.72,156.65,3.39361479]
[1762466746263,0.71,156.7,156.66,10.81361479]
[1762466746565,0.71,156.7,156.67,7.42]
[1762466747283,7.09192023,156.7,156.67,7.42]
[1762466747489,7.09192023,156.7,156.67,10.81361479]
[1762466747685,7.09136862,156.71,156.67,17.86642413]
[1762466747885,7.09136862,156.71,156.67,10.81361479]
[1762466748198,3.39361479,156.69,156.67,7.42]
[1762466748682,3.39361479,156.7,156.67,7.42]
[1762466748985,0.71,156.69,156.67,7.42]
[1762466749569,6.38214669,156.69,156.67,7.42]
[1762466749765,7.09214669,156.69,156.67,7.42]
[1762466750777,6.38214669,156.69,156.67,7.42]
[1762466751290,7.09214669,156.69,156.67,7.42]
[1762466752176,0.71,156.68,156.67,7.42]
[1762466752577,6.38214669,156.69,156.67,7.42]
[1762466752891,7.07214669,156.69,156.67,7.42]
[1762466755087,6.3817298,156.7,156.68,0.71]
[1762466755602,7.0717298,156.7,156.67,7.42]
[1762466755895,9.77534459,156.7,156.67,7.42]
[1762466756066,0.69,156.69,156.67,7.42]
[1762466756880,6.3817298,156.7,156.67,8.13]
[1762466757386,6.3817298,156.7,156.67,11.52361479]
[1762466757687,7.0717298,156.7,156.67,10.81361479]
[1762466758179,6.38135591,156.71,156.67,17.19642734]
[1762466758378,6.38135591,156.71,156.68,4.10361479]
[1762466758681,20.592,156.72,156.68,4.10361479]
[1762466758885,21.282,156.72,156.69,0.71]
[1762466759087,21.282,156.72,156.7,7.42]
[1762466759393,27.6628241,156.72,156.7,7.42]
[1762466759603,4.08361479,156.74,156.7,7.42]
[1762466759772,16.63936684,156.75,156.71,0.71]
[1762466760175,16.63936684,156.75,156.71,4.10361479]
[1762466760476,0.69,156.74,156.7,10.81361479]
[1762466760796,0.69,156.74,156.71,0.71]
[1762466761109,10.46283009,156.76,156.71,4.10361479]
[1762466761285,0.69,156.75,156.71,4.10361479]
[1762466761475,26.9712153,156.76,156.72,4.10361479]
[1762466761672,6.3792153,156.76,156.73,7.42]
[1762466761893,7.0692153,156.76,156.73,8.13]
[1762466762200,7.0692153,156.76,156.73,7.42]
[1762466762490,1e-08,156.76,156.73,8.13]
[1762466762793,1e-08,156.76,156.74,0.71]
[1762466763174,1e-08,156.76,156.74,4.10361479]
[1762466763373,1e-08,156.76,156.74,0.71]
[1762466763676,1e-08,156.76,156.73,11.52361479]
[1762466764577,1e-08,156.76,156.67,0.71]
[1762466764578,3.39361479,156.74,156.67,0.71]
[1762466764807,3.39361479,156.68,156.62,50.71]
[1762466764983,9.77698993,156.66,156.63,7.42]
[1762466765508,9.77698993,156.66,156.63,8.13]
[1762466765673,6.38337514,156.66,156.63,8.13]
[1762466765878,10.466114,156.68,156.64,0.71]
[1762466767492,10.466114,156.68,156.64,7.09401681]
[1762466767686,10.466114,156.68,156.64,0.71]
[1762466767892,3.39361479,156.66,156.63,7.42]
[1762466768402,0.69,156.67,156.63,8.13]
[1762466768403,4.08361479,156.67,156.63,8.13]
[1762466768782,9.77607615,156.68,156.64,0.71]
[1762466769097,21.282,156.69,156.64,0.71]
[1762466769098,31.05770224,156.69,156.64,7.09401755]
[1762466769478,31.05770224,156.69,156.65,0.71]
[1762466769681,31.05770224,156.69,156.66,7.4]
[1762466771521,3.39361479,156.69,156.66,7.4]
[1762466771806,6.38172251,156.7,156.67,0.71]
[1762466772005,9.7749562,156.71,156.67,0.71]
[1762466772207,6.38092689,156.72,156.67,4.10361479]
[1762466772392,6.3804768,156.73,156.69,3.39361479]
[1762466772590,6.3804768,156.73,156.7,7.4]
[1762466772788,7.0704768,156.73,156.7,7.4]
[1762466773190,3.39361479,156.74,156.7,8.11]
[1762466773396,7.06967796,156.75,156.71,0.71]
[1762466773595,0.69,156.75,156.71,10.48469763]
[1762466773894,7.06960655,156.75,156.71,10.48469763]
[1762466774089,6.37960655,156.75,156.72,0.71]
[1762466774294,6.37960655,156.75,156.73,7.4]
[1762466774687,20.59200001,156.76,156.73,7.4]
[1762466774688,1e-08,156.76,156.74,0.71]
[1762466774908,1e-08,156.76,156.74,4.10361479]
[1762466775109,1e-08,156.76,156.75,0.71]
[1762466775488,1e-08,156.76,156.75,4.10361479]
[1762466775792,1e-08,156.76,156.75,10.48320011]
[1762466776781,1e-08,156.76,156.75,4.10361479]
[1762466777207,1e-08,156.76,156.75,10.48320011]
[1762466781024,1e-08,156.76,156.75,20.2720278]
[1762466784415,1e-08,156.76,156.75,27.6720278]
[1762466784827,1e-08,156.76,156.75,14.48958532]
[1762466785109,1e-08,156.76,156.75,17.88320011]
[1762466785332,1e-08,156.76,156.75,0.71]
[1762466785505,1e-08,156.76,156.75,11.50361479]
[1762466785706,1e-08,156.76,156.75,17.88320011]
[1762466794001,1e-08,156.76,156.75,3.39361479]
[1762466794237,0.66000001,156.76,156.75,7.4]
[1762466794440,1e-08,156.76,156.75,7.4]